[Event "Titled Tuesday Blitz November 15 Late 2022"]
[White "Bilan, Danila"]
[Black "Grot, Blazej"]
[WhiteFideId "24161918"]
[BlackFideId "21835845"]
[WhiteElo "2173"]
[BlackElo "1822"]
[Result "1/2-1/2"]
[Round "06"]
[TimeControl "180+1"]
[Date "2022.11.16"]
[WhiteClock "0:00:10"]
[BlackClock "0:00:12"]

1. d4 {[%clk 0:03:00]}  d6 {[%clk 0:02:59]} 2. Nf3 {[%clk 0:03:00]}  Nf6 {[%clk 0:02:59]} 3. Bg5 {[%clk 0:02:59]}  Nbd7 {[%clk 0:02:59]} 4. Nbd2 {[%clk 0:02:58]}  c6 {[%clk 0:02:58]} 5. e4 {[%clk 0:02:57]}  Qc7 {[%clk 0:02:57]} 6. c3 {[%clk 0:02:55]}  e5 {[%clk 0:02:57]} 7. Bc4 {[%clk 0:02:50]}  Be7 {[%clk 0:02:55]} 8. O-O {[%clk 0:02:47]}  O-O {[%clk 0:02:54]} 9. Re1 {[%clk 0:02:46]}  Re8 {[%clk 0:02:41]} 10. Qb3 {[%clk 0:02:37]}  Rf8 {[%clk 0:02:38]} 11. a4 {[%clk 0:02:26]}  a5 {[%clk 0:02:34]} 12. Nf1 {[%clk 0:02:07]}  Nb6 {[%clk 0:02:33]} 13. Bd3 {[%clk 0:01:42]}  Be6 {[%clk 0:02:32]} 14. Qc2 {[%clk 0:01:42]}  Rfe8 {[%clk 0:02:18]} 15. Ne3 {[%clk 0:01:30]}  Nbd7 {[%clk 0:02:09]} 16. Nh4 {[%clk 0:01:07]}  Bf8 {[%clk 0:02:04]} 17. f4 {[%clk 0:01:01]}  exf4 {[%clk 0:01:46]} 18. Bxf4 {[%clk 0:01:00]}  Nh5 {[%clk 0:01:46]} 19. Qf2 {[%clk 0:00:45]}  Nxf4 {[%clk 0:01:46]} 20. Qxf4 {[%clk 0:00:46]}  g6 {[%clk 0:01:14]} 21. d5 {[%clk 0:00:40]}  cxd5 {[%clk 0:01:11]} 22. exd5 {[%clk 0:00:36]}  Bxd5 {[%clk 0:00:51]} 23. Nxd5 {[%clk 0:00:31]}  Qc5+ {[%clk 0:00:51]} 24. Qd4 {[%clk 0:00:29]}  Qxd4+ {[%clk 0:00:43]} 25. cxd4 {[%clk 0:00:28]}  Bg7 {[%clk 0:00:44]} 26. Nf3 {[%clk 0:00:28]}  Rac8 {[%clk 0:00:39]} 27. Ne7+ {[%clk 0:00:25]}  Rxe7 {[%clk 0:00:39]} 28. Rxe7 {[%clk 0:00:26]}  Nb6 {[%clk 0:00:38]} 29. Rxb7 {[%clk 0:00:25]}  Nd5 {[%clk 0:00:38]} 30. Re1 {[%clk 0:00:19]}  Nb4 {[%clk 0:00:39]} 31. Bb5 {[%clk 0:00:16]}  h5 {[%clk 0:00:39]} 32. Re8+ {[%clk 0:00:16]}  Rxe8 {[%clk 0:00:37]} 33. Bxe8 {[%clk 0:00:17]}  Nc2 {[%clk 0:00:37]} 34. Bxf7+ {[%clk 0:00:17]}  Kh7 {[%clk 0:00:38]} 35. Bb3 {[%clk 0:00:17]}  Ne3 {[%clk 0:00:38]} 36. h3 {[%clk 0:00:16]}  Nf5 {[%clk 0:00:39]} 37. Ng5+ {[%clk 0:00:15]}  Kh6 {[%clk 0:00:38]} 38. Nf7+ {[%clk 0:00:16]}  Kh7 {[%clk 0:00:39]} 39. Nxd6 {[%clk 0:00:16]}  Nxd6 {[%clk 0:00:38]} 40. Ra7 {[%clk 0:00:17]}  Kh6 {[%clk 0:00:29]} 41. Rxa5 {[%clk 0:00:16]}  Bxd4+ {[%clk 0:00:29]} 42. Kf1 {[%clk 0:00:15]}  Bxb2 {[%clk 0:00:29]} 43. Bc2 {[%clk 0:00:13]}  Nc4 {[%clk 0:00:27]} 44. Rc5 {[%clk 0:00:11]}  Ne3+ {[%clk 0:00:22]} 45. Ke2 {[%clk 0:00:07]}  Nxg2 {[%clk 0:00:21]} 46. Kf3 {[%clk 0:00:06]}  Ne1+ {[%clk 0:00:19]} 47. Kf2 {[%clk 0:00:05]}  Bd4+ {[%clk 0:00:16]} 48. Kxe1 {[%clk 0:00:05]}  Bxc5 {[%clk 0:00:16]} 49. Ke2 {[%clk 0:00:05]}  g5 {[%clk 0:00:15]} 50. Kf3 {[%clk 0:00:06]}  g4+ {[%clk 0:00:12]} 51. hxg4 {[%clk 0:00:04]}  hxg4+ {[%clk 0:00:12]} 52. Kxg4 {[%clk 0:00:04]}  Bb4 {[%clk 0:00:13]} 53. Kf5 {[%clk 0:00:05]}  Kg7 {[%clk 0:00:13]} 54. Ke6 {[%clk 0:00:06]}  Kf8 {[%clk 0:00:13]} 55. Kd5 {[%clk 0:00:07]}  Ke7 {[%clk 0:00:13]} 56. Kc6 {[%clk 0:00:08]}  Be1 {[%clk 0:00:13]} 57. Kb7 {[%clk 0:00:09]}  Kd7 {[%clk 0:00:13]} 58. Kb6 {[%clk 0:00:09]}  Kd8 {[%clk 0:00:13]} 59. a5 {[%clk 0:00:10]}  Bxa5+ {[%clk 0:00:12]} 1/2-1/2


[Site "https://www.chess.com"]

[Event "Titled Tuesday Blitz November 15 Late 2022"]
[White "Bluebaum, Matthias"]
[Black "Tang, Andrew"]
[WhiteFideId "24651516"]
[BlackFideId "2059630"]
[WhiteElo "2633"]
[BlackElo "2581"]
[Result "0-1"]
[Round "06"]
[TimeControl "180+1"]
[Date "2022.11.15"]
[WhiteClock "0:00:02"]
[BlackClock "0:00:15"]

1. d4 {[%clk 0:03:00]}  d5 {[%clk 0:02:59]} 2. c4 {[%clk 0:03:01]}  e6 {[%clk 0:02:59]} 3. Nc3 {[%clk 0:03:01]}  Be7 {[%clk 0:02:53]} 4. Nf3 {[%clk 0:03:01]}  Nf6 {[%clk 0:02:53]} 5. g3 {[%clk 0:03:02]}  dxc4 {[%clk 0:02:45]} 6. Bg2 {[%clk 0:03:01]}  Qd6 {[%clk 0:02:45]} 7. Ne5 {[%clk 0:03:00]}  Qa6 {[%clk 0:02:45]} 8. a4 {[%clk 0:03:01]}  O-O {[%clk 0:02:42]} 9. O-O {[%clk 0:03:00]}  c6 {[%clk 0:02:43]} 10. Bg5 {[%clk 0:02:33]}  h6 {[%clk 0:02:33]} 11. Bxf6 {[%clk 0:02:30]}  gxf6 {[%clk 0:02:33]} 12. Nf3 {[%clk 0:02:18]}  Nd7 {[%clk 0:02:29]} 13. e4 {[%clk 0:02:18]}  Rd8 {[%clk 0:02:20]} 14. Qe2 {[%clk 0:02:16]}  e5 {[%clk 0:02:16]} 15. Rfd1 {[%clk 0:02:01]}  exd4 {[%clk 0:02:12]} 16. Nxd4 {[%clk 0:01:47]}  Ne5 {[%clk 0:02:07]} 17. Qh5 {[%clk 0:01:45]}  Bg4 {[%clk 0:01:55]} 18. Qxh6 {[%clk 0:01:45]}  Bf8 {[%clk 0:01:37]} 19. Qxf6 {[%clk 0:01:40]}  Bg7 {[%clk 0:01:37]} 20. Qg5 {[%clk 0:01:40]}  f6 {[%clk 0:01:34]} 21. Qe3 {[%clk 0:01:33]}  Bxd1 {[%clk 0:01:31]} 22. Rxd1 {[%clk 0:01:34]}  Qb6 {[%clk 0:01:29]} 23. Rd2 {[%clk 0:00:33]}  Rd6 {[%clk 0:00:44]} 24. Nce2 {[%clk 0:00:33]}  Rad8 {[%clk 0:00:38]} 25. Kh1 {[%clk 0:00:08]}  c5 {[%clk 0:00:33]} 26. Nf3 {[%clk 0:00:08]}  Rxd2 {[%clk 0:00:23]} 27. Nxd2 {[%clk 0:00:09]}  Qxb2 {[%clk 0:00:18]} 28. Nf3 {[%clk 0:00:09]}  Rd3 {[%clk 0:00:16]} 29. Qf4 {[%clk 0:00:03]}  Qxe2 {[%clk 0:00:15]} 30. Ng1 {[%clk 0:00:02]}  Rd1 {[%clk 0:00:13]} 31. Bh3 {[%clk 0:00:02]}  Qe1 {[%clk 0:00:13]} 32. Be6+ {[%clk 0:00:02]}  Kf8 {[%clk 0:00:14]} 33. Kg2 {[%clk 0:00:01]}  Qf1+ {[%clk 0:00:14]} 34. Kh1 {[%clk 0:00:02]}  Qxg1# {[%clk 0:00:15]} 0-1


[Site "https://www.chess.com"]

[Event "Titled Tuesday Blitz November 15 Late 2022"]
[White "Buchenau, Frank"]
[Black "Przybylski, Wojciech"]
[WhiteFideId "4604350"]
[BlackFideId "1117599"]
[WhiteElo "2157"]
[BlackElo "2221"]
[Result "1-0"]
[Round "06"]
[TimeControl "180+1"]
[Date "2022.11.16"]
[WhiteClock "0:00:04"]
[BlackClock "0:00:01"]

1. e4 {[%clk 0:02:55]}  e5 {[%clk 0:02:57]} 2. Bc4 {[%clk 0:02:54]}  Nf6 {[%clk 0:02:55]} 3. d3 {[%clk 0:02:54]}  c6 {[%clk 0:02:54]} 4. Nf3 {[%clk 0:02:54]}  Be7 {[%clk 0:02:50]} 5. O-O {[%clk 0:02:54]}  d6 {[%clk 0:02:50]} 6. c3 {[%clk 0:02:51]}  O-O {[%clk 0:02:49]} 7. Bb3 {[%clk 0:02:51]}  Nbd7 {[%clk 0:02:48]} 8. Nbd2 {[%clk 0:02:51]}  Nc5 {[%clk 0:02:47]} 9. Bc2 {[%clk 0:02:51]}  Bg4 {[%clk 0:02:48]} 10. h3 {[%clk 0:02:50]}  Bh5 {[%clk 0:02:48]} 11. Re1 {[%clk 0:02:50]}  Ne6 {[%clk 0:02:47]} 12. Nf1 {[%clk 0:02:47]}  Nf4 {[%clk 0:02:38]} 13. Ng3 {[%clk 0:02:43]}  Bg6 {[%clk 0:02:32]} 14. d4 {[%clk 0:02:41]}  Qc7 {[%clk 0:02:27]} 15. Be3 {[%clk 0:02:34]}  Rae8 {[%clk 0:02:23]} 16. Qd2 {[%clk 0:02:33]}  N6h5 {[%clk 0:02:18]} 17. Nf5 {[%clk 0:02:21]}  Bf6 {[%clk 0:02:05]} 18. Rad1 {[%clk 0:02:13]}  Rd8 {[%clk 0:02:00]} 19. g3 {[%clk 0:02:07]}  Ne6 {[%clk 0:01:53]} 20. Kg2 {[%clk 0:01:45]}  Rfe8 {[%clk 0:01:51]} 21. Qc1 {[%clk 0:01:36]}  a5 {[%clk 0:01:46]} 22. Nh2 {[%clk 0:01:32]}  Rd7 {[%clk 0:01:33]} 23. Ng4 {[%clk 0:01:32]}  Red8 {[%clk 0:01:29]} 24. d5 {[%clk 0:01:23]}  Nf8 {[%clk 0:01:17]} 25. Nxf6+ {[%clk 0:01:20]}  Nxf6 {[%clk 0:01:15]} 26. Bg5 {[%clk 0:01:17]}  Bxf5 {[%clk 0:00:54]} 27. exf5 {[%clk 0:01:16]}  Nxd5 {[%clk 0:00:46]} 28. Bxd8 {[%clk 0:01:14]}  Qxd8 {[%clk 0:00:44]} 29. Bb3 {[%clk 0:00:56]}  Nf6 {[%clk 0:00:42]} 30. f4 {[%clk 0:00:52]}  e4 {[%clk 0:00:39]} 31. g4 {[%clk 0:00:52]}  d5 {[%clk 0:00:37]} 32. Qe3 {[%clk 0:00:50]}  b5 {[%clk 0:00:34]} 33. g5 {[%clk 0:00:47]}  Nh5 {[%clk 0:00:32]} 34. Rf1 {[%clk 0:00:44]}  a4 {[%clk 0:00:30]} 35. Bc2 {[%clk 0:00:43]}  g6 {[%clk 0:00:25]} 36. Qe2 {[%clk 0:00:38]}  Qc7 {[%clk 0:00:23]} 37. Qg4 {[%clk 0:00:37]}  e3 {[%clk 0:00:15]} 38. Rde1 {[%clk 0:00:34]}  Re7 {[%clk 0:00:14]} 39. f6 {[%clk 0:00:34]}  Re8 {[%clk 0:00:14]} 40. Qf3 {[%clk 0:00:29]}  Ne6 {[%clk 0:00:09]} 41. Rxe3 {[%clk 0:00:23]}  Nexf4+ {[%clk 0:00:07]} 42. Kh1 {[%clk 0:00:19]}  Qd7 {[%clk 0:00:04]} 43. Rfe1 {[%clk 0:00:17]}  Rf8 {[%clk 0:00:03]} 44. Kh2 {[%clk 0:00:16]}  Ne6 {[%clk 0:00:03]} 45. Qg4 {[%clk 0:00:13]}  Qd6+ {[%clk 0:00:03]} 46. Kh1 {[%clk 0:00:12]}  Nc5 {[%clk 0:00:03]} 47. Re5 {[%clk 0:00:12]}  Ne6 {[%clk 0:00:03]} 48. Rxe6 {[%clk 0:00:11]}  fxe6 {[%clk 0:00:03]} 49. Qxe6+ {[%clk 0:00:11]}  Qxe6 {[%clk 0:00:03]} 50. Rxe6 {[%clk 0:00:12]}  Nf4 {[%clk 0:00:01]} 51. Rxc6 {[%clk 0:00:11]}  d4 {[%clk 0:00:01]} 52. Kh2 {[%clk 0:00:09]}  Nd5 {[%clk 0:00:01]} 53. cxd4 {[%clk 0:00:09]}  Nb4 {[%clk 0:00:01]} 54. Rc7 {[%clk 0:00:09]}  Nxc2 {[%clk 0:00:01]} 55. Rxc2 {[%clk 0:00:10]}  Kf7 {[%clk 0:00:02]} 56. Rc7+ {[%clk 0:00:10]}  Ke6 {[%clk 0:00:02]} 57. Re7+ {[%clk 0:00:10]}  Kf5 {[%clk 0:00:02]} 58. d5 {[%clk 0:00:09]}  Kxg5 {[%clk 0:00:02]} 59. f7 {[%clk 0:00:10]}  Kf6 {[%clk 0:00:02]} 60. d6 {[%clk 0:00:09]}  Rxf7 {[%clk 0:00:01]} 61. Re8 {[%clk 0:00:06]}  Rd7 {[%clk 0:00:01]} 62. Rb8 {[%clk 0:00:06]}  Ke6 {[%clk 0:00:01]} 63. Rxb5 {[%clk 0:00:05]}  Rxd6 {[%clk 0:00:01]} 64. Rb4 {[%clk 0:00:05]}  Rd2+ {[%clk 0:00:01]} 65. Kg3 {[%clk 0:00:05]}  a3 {[%clk 0:00:01]} 66. bxa3 {[%clk 0:00:04]}  Rxa2 {[%clk 0:00:01]} 67. a4 {[%clk 0:00:05]}  Rc2 {[%clk 0:00:01]} 68. h4 {[%clk 0:00:05]}  Kf6 {[%clk 0:00:01]} 69. a5 {[%clk 0:00:04]} 1-0


[Site "https://www.chess.com"]

[Event "Titled Tuesday Blitz November 15 Late 2022"]
[White "Chirilov, James A"]
[Black "Bogaudinov, Rushan"]
[WhiteFideId "30976677"]
[BlackFideId "4129288"]
[WhiteElo "1790"]
[BlackElo "1997"]
[Result "1-0"]
[Round "06"]
[TimeControl "180+1"]
[Date "2022.11.16"]
[WhiteClock "0:00:18"]
[BlackClock "0:00:01"]

1. e4 {[%clk 0:03:00]}  e5 {[%clk 0:02:53]} 2. Nf3 {[%clk 0:02:56]}  Nf6 {[%clk 0:02:52]} 3. d4 {[%clk 0:02:54]}  Nxe4 {[%clk 0:02:49]} 4. Bd3 {[%clk 0:02:53]}  d5 {[%clk 0:02:45]} 5. Nxe5 {[%clk 0:02:52]}  Be7 {[%clk 0:02:38]} 6. O-O {[%clk 0:02:48]}  O-O {[%clk 0:02:37]} 7. c4 {[%clk 0:02:48]}  c6 {[%clk 0:02:34]} 8. Nc3 {[%clk 0:02:47]}  Nxc3 {[%clk 0:02:35]} 9. bxc3 {[%clk 0:02:48]}  dxc4 {[%clk 0:02:35]} 10. Bxc4 {[%clk 0:02:47]}  Nd7 {[%clk 0:02:32]} 11. Bf4 {[%clk 0:02:35]}  Nxe5 {[%clk 0:02:31]} 12. Bxe5 {[%clk 0:02:36]}  Bf5 {[%clk 0:02:18]} 13. Re1 {[%clk 0:02:32]}  Qd7 {[%clk 0:01:57]} 14. Qf3 {[%clk 0:02:23]}  Bg6 {[%clk 0:01:53]} 15. Rad1 {[%clk 0:02:05]}  Bd6 {[%clk 0:01:36]} 16. h4 {[%clk 0:01:56]}  Bxe5 {[%clk 0:01:14]} 17. Rxe5 {[%clk 0:01:57]}  Rae8 {[%clk 0:00:51]} 18. h5 {[%clk 0:01:36]}  Bc2 {[%clk 0:00:50]} 19. Rde1 {[%clk 0:01:18]}  Rxe5 {[%clk 0:00:46]} 20. Rxe5 {[%clk 0:01:13]}  b5 {[%clk 0:00:41]} 21. Bf1 {[%clk 0:00:59]}  Bb1 {[%clk 0:00:31]} 22. h6 {[%clk 0:00:57]}  Bxa2 {[%clk 0:00:17]} 23. Rg5 {[%clk 0:00:41]}  Qe6 {[%clk 0:00:13]} 24. Rxg7+ {[%clk 0:00:37]}  Kh8 {[%clk 0:00:13]} 25. Bd3 {[%clk 0:00:28]}  f5 {[%clk 0:00:09]} 26. Rxa7 {[%clk 0:00:23]}  Qxh6 {[%clk 0:00:07]} 27. Rxa2 {[%clk 0:00:19]}  Qc1+ {[%clk 0:00:06]} 28. Bf1 {[%clk 0:00:19]}  Re8 {[%clk 0:00:03]} 29. Re2 {[%clk 0:00:19]}  Rf8 {[%clk 0:00:01]} 30. Qe3 {[%clk 0:00:18]} 1-0


[Site "https://www.chess.com"]

[Event "Titled Tuesday Blitz November 15 Late 2022"]
[White "Dudzinski, Pawel"]
[Black "Phillips, Rene"]
[WhiteFideId "1117890"]
[BlackFideId "2056275"]
[WhiteElo "2086"]
[BlackElo "1991"]
[Result "1-0"]
[Round "06"]
[TimeControl "180+1"]
[Date "2022.11.16"]
[WhiteClock "0:02:30"]
[BlackClock "0:00:43"]

1. e4 {[%clk 0:03:00]}  Nc6 {[%clk 0:00:58]} 2. Nc3 {[%clk 0:02:56]}  Nf6 {[%clk 0:00:56]} 3. d4 {[%clk 0:02:51]}  d5 {[%clk 0:00:56]} 4. e5 {[%clk 0:02:51]}  Nd7 {[%clk 0:00:55]} 5. f4 {[%clk 0:02:50]}  Nb6 {[%clk 0:00:55]} 6. Nf3 {[%clk 0:02:50]}  Bg4 {[%clk 0:00:56]} 7. Be3 {[%clk 0:02:44]}  e6 {[%clk 0:00:54]} 8. h3 {[%clk 0:02:41]}  Bxf3 {[%clk 0:00:51]} 9. Qxf3 {[%clk 0:02:42]}  Be7 {[%clk 0:00:51]} 10. Bd3 {[%clk 0:02:36]}  Bh4+ {[%clk 0:00:50]} 11. g3 {[%clk 0:02:36]}  Be7 {[%clk 0:00:50]} 12. f5 {[%clk 0:02:36]}  Bg5 {[%clk 0:00:49]} 13. fxe6 {[%clk 0:02:34]}  fxe6 {[%clk 0:00:43]} 14. Qh5+ {[%clk 0:02:30]} 1-0


[Site "https://www.chess.com"]

[Event "Titled Tuesday Blitz November 15 Late 2022"]
[White "Dzierzak, Radoslaw"]
[Black "Tan, Zhongyi"]
[WhiteFideId "1161407"]
[BlackFideId "8603642"]
[WhiteElo "2111"]
[BlackElo "2510"]
[Result "1/2-1/2"]
[Round "06"]
[TimeControl "180+1"]
[Date "2022.11.16"]
[WhiteClock "0:00:26"]
[BlackClock "0:00:56"]

1. e4 {[%clk 0:03:00]}  c5 {[%clk 0:02:57]} 2. Nf3 {[%clk 0:03:01]}  d6 {[%clk 0:02:57]} 3. d4 {[%clk 0:03:01]}  cxd4 {[%clk 0:02:58]} 4. Nxd4 {[%clk 0:03:02]}  Nf6 {[%clk 0:02:57]} 5. Nc3 {[%clk 0:03:03]}  a6 {[%clk 0:02:58]} 6. g3 {[%clk 0:03:03]}  e6 {[%clk 0:02:49]} 7. Bg2 {[%clk 0:03:03]}  Nc6 {[%clk 0:02:49]} 8. Nxc6 {[%clk 0:03:00]}  bxc6 {[%clk 0:02:50]} 9. e5 {[%clk 0:03:01]}  Nd5 {[%clk 0:02:49]} 10. exd6 {[%clk 0:02:56]}  Bxd6 {[%clk 0:02:48]} 11. Ne4 {[%clk 0:02:56]}  Be7 {[%clk 0:02:43]} 12. O-O {[%clk 0:02:44]}  O-O {[%clk 0:02:42]} 13. c4 {[%clk 0:02:44]}  Nb4 {[%clk 0:02:42]} 14. a3 {[%clk 0:02:29]}  Nd3 {[%clk 0:02:40]} 15. b4 {[%clk 0:02:15]}  Nxc1 {[%clk 0:02:21]} 16. Rxc1 {[%clk 0:02:13]}  a5 {[%clk 0:02:18]} 17. c5 {[%clk 0:02:09]}  axb4 {[%clk 0:02:14]} 18. axb4 {[%clk 0:02:10]}  Ba6 {[%clk 0:02:09]} 19. Qxd8 {[%clk 0:02:07]}  Rfxd8 {[%clk 0:02:08]} 20. Rfd1 {[%clk 0:02:07]}  Rxd1+ {[%clk 0:01:38]} 21. Rxd1 {[%clk 0:02:08]}  Bc4 {[%clk 0:01:28]} 22. Nd6 {[%clk 0:01:41]}  Bd5 {[%clk 0:01:24]} 23. Bxd5 {[%clk 0:01:38]}  exd5 {[%clk 0:01:25]} 24. b5 {[%clk 0:01:03]}  cxb5 {[%clk 0:01:26]} 25. Nxb5 {[%clk 0:01:01]}  Bxc5 {[%clk 0:01:21]} 26. Rxd5 {[%clk 0:01:00]}  Bb6 {[%clk 0:01:19]} 27. Rd2 {[%clk 0:00:53]}  h5 {[%clk 0:01:17]} 28. h4 {[%clk 0:00:53]}  Ra4 {[%clk 0:01:12]} 29. Nc3 {[%clk 0:00:48]}  Ra3 {[%clk 0:01:11]} 30. Ne4 {[%clk 0:00:42]}  Rb3 {[%clk 0:01:09]} 31. Kg2 {[%clk 0:00:41]}  g6 {[%clk 0:01:08]} 32. Rd7 {[%clk 0:00:35]}  Rb2 {[%clk 0:00:59]} 33. Rb7 {[%clk 0:00:32]}  Bd4 {[%clk 0:00:56]} 34. Rxb2 {[%clk 0:00:31]}  Bxb2 {[%clk 0:00:56]} 35. f4 {[%clk 0:00:26]} 1/2-1/2


[Site "https://www.chess.com"]

[Event "Titled Tuesday Blitz November 15 Late 2022"]
[White "Eljanov, Pavel"]
[Black "Sanal, Vahap"]
[WhiteFideId "14102951"]
[BlackFideId "6300545"]
[WhiteElo "2601"]
[BlackElo "2574"]
[Result "1-0"]
[Round "06"]
[TimeControl "180+1"]
[Date "2022.11.15"]
[WhiteClock "0:01:09"]
[BlackClock "0:01:49"]

1. c4 {[%clk 0:03:00]}  Nf6 {[%clk 0:02:59]} 2. g3 {[%clk 0:03:01]}  d6 {[%clk 0:02:59]} 3. Bg2 {[%clk 0:03:01]}  e5 {[%clk 0:02:59]} 4. Nc3 {[%clk 0:03:00]}  Nc6 {[%clk 0:03:00]} 5. Nf3 {[%clk 0:02:59]}  Bd7 {[%clk 0:02:58]} 6. d4 {[%clk 0:02:56]}  Be7 {[%clk 0:02:57]} 7. d5 {[%clk 0:02:53]}  Nb8 {[%clk 0:02:57]} 8. e4 {[%clk 0:02:50]}  Na6 {[%clk 0:02:55]} 9. O-O {[%clk 0:02:45]}  Nc5 {[%clk 0:02:55]} 10. Ne1 {[%clk 0:02:45]}  a5 {[%clk 0:02:55]} 11. Nd3 {[%clk 0:02:42]}  b6 {[%clk 0:02:54]} 12. Nxc5 {[%clk 0:02:35]}  bxc5 {[%clk 0:02:55]} 13. f4 {[%clk 0:02:34]}  h5 {[%clk 0:02:53]} 14. fxe5 {[%clk 0:02:19]}  dxe5 {[%clk 0:02:53]} 15. h3 {[%clk 0:02:18]}  Qc8 {[%clk 0:02:52]} 16. Kh2 {[%clk 0:02:13]}  Ra6 {[%clk 0:02:53]} 17. Qe2 {[%clk 0:01:58]}  h4 {[%clk 0:02:53]} 18. g4 {[%clk 0:01:58]}  Bxg4 {[%clk 0:02:53]} 19. hxg4 {[%clk 0:01:58]}  Nxg4+ {[%clk 0:02:54]} 20. Kh1 {[%clk 0:01:54]}  h3 {[%clk 0:02:54]} 21. Bf3 {[%clk 0:01:53]}  Rg6 {[%clk 0:02:55]} 22. Rg1 {[%clk 0:01:43]}  Rh4 {[%clk 0:02:51]} 23. Bd2 {[%clk 0:01:42]}  Nh6 {[%clk 0:02:33]} 24. Rxg6 {[%clk 0:01:38]}  fxg6 {[%clk 0:02:33]} 25. Rg1 {[%clk 0:01:37]}  Qa6 {[%clk 0:02:22]} 26. Nb5 {[%clk 0:01:33]}  Bd8 {[%clk 0:02:10]} 27. Qf2 {[%clk 0:01:25]}  Qb6 {[%clk 0:02:03]} 28. Bxh6 {[%clk 0:01:18]}  gxh6 {[%clk 0:02:01]} 29. Bg4 {[%clk 0:01:18]}  h5 {[%clk 0:01:56]} 30. Rf1 {[%clk 0:01:14]}  Bf6 {[%clk 0:01:50]} 31. Nxc7+ {[%clk 0:01:10]}  Ke7 {[%clk 0:01:49]} 32. Ne6 {[%clk 0:01:09]} 1-0


[Site "https://www.chess.com"]

[Event "Titled Tuesday Blitz November 15 Late 2022"]
[White "Fernandez Hernandez, Gerardo"]
[Black "Jimenez Almeida, Luis David"]
[WhiteFideId "2207400"]
[BlackFideId "22242244"]
[WhiteElo "2232"]
[BlackElo "2158"]
[Result "1/2-1/2"]
[Round "06"]
[TimeControl "180+1"]
[Date "2022.11.16"]
[WhiteClock "0:00:05"]
[BlackClock "0:00:02"]

1. e4 {[%clk 0:03:00]}  c5 {[%clk 0:02:59]} 2. d3 {[%clk 0:02:58]}  Nc6 {[%clk 0:02:56]} 3. g3 {[%clk 0:02:58]}  d5 {[%clk 0:02:56]} 4. Nd2 {[%clk 0:02:57]}  e5 {[%clk 0:02:53]} 5. Bg2 {[%clk 0:02:57]}  Be6 {[%clk 0:02:53]} 6. Ngf3 {[%clk 0:02:57]}  d4 {[%clk 0:02:43]} 7. Nc4 {[%clk 0:02:55]}  f6 {[%clk 0:02:39]} 8. O-O {[%clk 0:02:54]}  b5 {[%clk 0:02:37]} 9. Ncd2 {[%clk 0:02:42]}  Bd6 {[%clk 0:02:37]} 10. a4 {[%clk 0:02:41]}  a6 {[%clk 0:02:37]} 11. axb5 {[%clk 0:02:42]}  axb5 {[%clk 0:02:38]} 12. Rxa8 {[%clk 0:02:42]}  Qxa8 {[%clk 0:02:38]} 13. Nh4 {[%clk 0:02:42]}  Nge7 {[%clk 0:02:36]} 14. Qh5+ {[%clk 0:02:32]}  Bf7 {[%clk 0:02:29]} 15. Qg4 {[%clk 0:02:26]}  O-O {[%clk 0:02:21]} 16. Nf5 {[%clk 0:02:19]}  Nxf5 {[%clk 0:02:21]} 17. exf5 {[%clk 0:02:19]}  Rc8 {[%clk 0:02:14]} 18. Ne4 {[%clk 0:02:17]}  Be7 {[%clk 0:02:04]} 19. Bh6 {[%clk 0:02:16]}  g6 {[%clk 0:01:58]} 20. Bd2 {[%clk 0:01:39]}  Qb7 {[%clk 0:01:39]} 21. Ra1 {[%clk 0:01:31]}  Qd7 {[%clk 0:01:30]} 22. Bh3 {[%clk 0:01:12]}  h5 {[%clk 0:01:16]} 23. Qf3 {[%clk 0:00:52]}  g5 {[%clk 0:00:56]} 24. g4 {[%clk 0:00:45]}  hxg4 {[%clk 0:00:38]} 25. Bxg4 {[%clk 0:00:36]}  Qd8 {[%clk 0:00:36]} 26. Ra6 {[%clk 0:00:27]}  Bd5 {[%clk 0:00:32]} 27. Qg2 {[%clk 0:00:16]}  Ra8 {[%clk 0:00:31]} 28. Rxa8 {[%clk 0:00:15]}  Qxa8 {[%clk 0:00:32]} 29. h3 {[%clk 0:00:15]}  Nb4 {[%clk 0:00:16]} 30. Bxb4 {[%clk 0:00:13]}  cxb4 {[%clk 0:00:17]} 31. Kh2 {[%clk 0:00:12]}  Kf8 {[%clk 0:00:16]} 32. Bf3 {[%clk 0:00:11]}  Qc6 {[%clk 0:00:15]} 33. Nxg5 {[%clk 0:00:10]}  fxg5 {[%clk 0:00:09]} 34. Bxd5 {[%clk 0:00:10]}  Qxc2 {[%clk 0:00:10]} 35. Qf3 {[%clk 0:00:07]}  e4 {[%clk 0:00:05]} 36. Bxe4 {[%clk 0:00:06]}  Bd6+ {[%clk 0:00:06]} 37. Kg2 {[%clk 0:00:06]}  Bf4 {[%clk 0:00:05]} 38. f6 {[%clk 0:00:05]}  Kf7 {[%clk 0:00:03]} 39. Bd5+ {[%clk 0:00:04]}  Kxf6 {[%clk 0:00:03]} 40. Qe4 {[%clk 0:00:04]}  Be3 {[%clk 0:00:03]} 41. Qe6+ {[%clk 0:00:04]}  Kg7 {[%clk 0:00:03]} 42. Qf7+ {[%clk 0:00:04]}  Kh6 {[%clk 0:00:04]} 43. Qf6+ {[%clk 0:00:04]}  Kh7 {[%clk 0:00:01]} 44. Be4+ {[%clk 0:00:04]}  Kg8 {[%clk 0:00:02]} 45. Bd5+ {[%clk 0:00:05]}  Kh7 {[%clk 0:00:02]} 46. Qf7+ {[%clk 0:00:05]}  Kh6 {[%clk 0:00:02]} 47. Qf6+ {[%clk 0:00:05]}  Kh7 {[%clk 0:00:02]} 1/2-1/2


[Site "https://www.chess.com"]